bitfinex-derivatives/quotes_ETHF0:USTF0_20250908
["timestamp","ask_amount","ask_price","bid_price","bid_amount"]
[1757348120321,0.3161,4358.3,4357.6,0.3042]
[1757348120527,0.7263,4357.7,4357.6,0.702]
[1757348120931,0.2072,4357.7,4357.6,0.702]
[1757348121129,0.8529,4358.0,4357.9,0.3978]
[1757348121428,0.8529,4358.0,4357.3,1.202]
[1757348121429,0.5233,4357.4,4357.3,1.202]
[1757348121823,0.6452,4357.9,4357.8,0.1974]
[1757348122022,0.9613,4357.9,4357.8,0.1974]
[1757348122319,0.9613,4357.9,4357.3,0.5]
[1757348122320,0.7263,4357.5,4357.4,0.702]
[1757348122521,0.5368,4357.5,4357.3,0.5]
[1757348122722,0.7263,4357.4,4357.3,0.8978]
[1757348122931,0.7263,4357.4,4357.3,1.202]
[1757348123232,4.9558,4357.4,4357.3,0.1777]
[1757348123428,0.9613,4357.4,4357.3,0.1777]
[1757348123731,0.7263,4357.4,4357.3,0.1777]
[1757348123919,0.7263,4357.4,4357.3,0.8797]
[1757348124126,0.4102,4357.4,4357.3,0.8797]
[1757348124530,0.7263,4357.4,4357.3,0.1777]
[1757348125531,0.7263,4357.4,4357.3,0.6793]
[1757348125737,0.7263,4357.4,4357.3,0.8797]
[1757348126236,0.7263,4357.4,4357.3,0.6793]
[1757348126436,0.7263,4357.4,4357.3,0.1777]
[1757348127230,0.7263,4357.4,4357.3,0.6793]
[1757348127632,0.7263,4357.4,4357.3,0.8797]
[1757348128641,0.4102,4357.4,4357.3,0.8797]
[1757348129231,0.5233,4358.4,4358.3,0.1974]
[1757348129432,1.28624927,4358.4,4358.3,0.702]
[1757348129733,0.841,4358.4,4358.3,0.702]
[1757348129933,0.841,4358.4,4358.0,0.1241]
[1757348130142,0.7263,4358.1,4358.0,0.5016]
[1757348130531,0.4102,4358.1,4357.5,0.4283]
[1757348130842,0.4102,4357.6,4357.5,0.8261]
[1757348131132,0.1147,4358.4,4358.2,0.702]
[1757348131332,0.1147,4358.4,4358.3,0.702]
[1757348131539,0.3219,4358.4,4358.3,0.702]
[1757348132639,0.841,4358.4,4358.3,0.702]
[1757348133329,0.5249,4358.4,4358.0,0.4283]
[1757348133533,0.7263,4358.1,4358.0,0.5016]
[1757348134338,0.4102,4358.1,4357.5,0.1241]
[1757348134539,0.7263,4357.6,4357.5,0.702]
[1757348135234,0.7263,4357.6,4357.3,0.1777]
[1757348135437,0.7263,4357.4,4357.3,0.6793]
[1757348136134,0.7263,4357.4,4357.3,0.8797]
[1757348136440,0.7263,4357.4,4357.3,0.1777]
[1757348137138,0.4102,4357.5,4357.4,0.702]
[1757348137343,0.7263,4357.5,4357.4,0.702]
[1757348138243,0.3161,4357.9,4357.5,0.1241]
[1757348138444,0.3161,4357.9,4357.8,0.702]
[1757348138445,0.6452,4357.9,4357.8,0.702]
[1757348138745,0.2072,4357.9,4357.8,0.702]
[1757348139538,0.4102,4357.9,4357.8,0.702]
[1757348140347,0.2072,4357.9,4357.8,0.702]
[1757348140549,1.28726588,4357.9,4357.8,0.702]
[1757348141245,1.28726588,4357.9,4357.5,0.1241]
[1757348141446,0.4102,4357.7,4357.6,0.5016]
[1757348141642,0.7263,4357.7,4357.6,0.5016]
[1757348142144,0.7263,4357.7,4357.3,0.3751]
[1757348142145,0.203,4357.7,4357.3,0.3751]
[1757348142348,1.13936,4357.4,4357.3,0.1777]
[1757348143248,1.13936,4357.4,4357.3,0.6793]
[1757348143649,1.13936,4357.4,4357.3,0.1777]
[1757348143946,1.13936,4357.4,4357.3,0.6793]
[1757348145248,1.70100497,4357.4,4357.3,0.6793]
[1757348145544,1.70100439,4357.4,4357.3,0.6793]
[1757348145944,1.13936,4357.4,4357.3,0.6793]
[1757348146145,1.70098776,4357.4,4357.3,0.1777]
[1757348146344,1.28792776,4357.4,4357.0,0.3194]
[1757348146547,0.7096,4357.1,4356.6,0.3194]
[1757348146739,0.7096,4357.0,4356.9,0.527]
[1757348147147,0.7096,4357.0,4356.9,0.739]
[1757348147749,0.7096,4357.0,4356.9,0.527]
[1757348148248,1.38703545,4357.0,4356.9,0.527]
[1757348149345,1.50333545,4357.0,4356.6,0.3194]
[1757348149544,0.7096,4356.7,4356.6,0.527]
[1757348149747,1.27233545,4356.7,4356.6,0.527]
[1757348150045,1.27233545,4356.7,4356.6,0.739]
[1757348150249,0.77703545,4356.7,4356.6,0.739]
[1757348150443,0.56273545,4356.7,4356.6,0.739]
[1757348150847,0.56273545,4356.9,4356.6,0.739]
[1757348151148,0.56273545,4356.8,4356.7,0.739]
[1757348151348,0.1147,4357.0,4356.9,0.4196]
[1757348151543,0.1147,4357.0,4356.9,0.739]
[1757348151944,0.67780016,4357.0,4356.9,0.739]
[1757348152155,0.89210016,4357.0,4356.9,0.739]
[1757348153046,0.67780016,4357.0,4356.9,0.739]
[1757348153549,0.89210016,4357.0,4356.9,0.739]
[1757348153749,1.38740016,4357.0,4356.9,0.527]
[1757348153948,1.80049016,4357.0,4356.9,0.527]
[1757348154449,1.80049016,4357.0,4356.9,0.2076]
[1757348154952,1.80049016,4357.0,4356.9,0.527]
[1757348156147,1.09089016,4357.0,4356.9,0.739]
[1757348156747,0.74209,4357.0,4356.9,0.739]
[1757348156952,0.52779,4357.0,4356.9,0.739]
[1757348157645,0.74209,4357.0,4356.9,0.739]
[1757348158452,0.52779,4357.0,4356.9,0.739]
[1757348158855,0.52779,4357.0,4356.9,4.739]
[1757348159049,0.5099,4357.8,4357.7,0.4196]
[1757348159252,1.07834175,4357.8,4357.7,0.739]
[1757348159452,0.7096,4357.8,4357.7,0.739]
[1757348160145,0.5099,4357.8,4357.7,0.739]
[1757348160551,0.7096,4358.4,4358.3,0.2076]
[1757348160750,1.27814001,4358.4,4357.6,0.3194]
[1757348161050,0.5099,4357.7,4357.6,0.739]
[1757348161256,0.7096,4357.7,4357.6,0.739]
[1757348161555,0.7096,4358.4,4358.3,0.5314]
[1757348161750,0.78289067,4358.4,4358.3,0.739]
[1757348161943,1.07849067,4358.4,4358.3,0.739]
[1757348162142,0.5099,4358.4,4358.3,0.739]
[1757348162952,0.7096,4358.4,4358.3,0.739]
[1757348163354,0.7096,4358.4,4358.3,0.4196]
[1757348164256,0.7096,4358.4,4358.0,0.3194]
[1757348164257,0.5099,4358.9,4358.8,0.739]
[1757348164458,1.07847907,4358.9,4358.8,0.739]
[1757348165254,0.2956,4359.4,4358.9,0.3194]
[1757348165452,1.077975,4359.3,4359.2,0.739]
[1757348165650,0.1163,4359.0,4358.7,0.3194]
[1757348165954,0.7096,4358.8,4358.7,0.739]
[1757348166354,0.7096,4358.8,4357.9,0.3194]
[1757348166552,0.7096,4358.8,4357.5,0.3194]
[1757348166744,0.5676521,4358.7,4357.5,0.3194]
[1757348166948,0.93906,4358.8,4357.5,0.3194]
[1757348167261,0.5099,4357.6,4357.5,0.739]
[1757348167650,0.7096,4357.6,4357.5,0.4196]
[1757348168053,0.414,4357.3,4357.2,0.4426]
[1757348168252,0.2956,4357.2,4356.6,0.3194]
[1757348168452,0.1163,4357.5,4356.6,0.54892]
[1757348168652,0.414,4356.7,4356.6,0.739]
[1757348168853,0.7096,4356.7,4356.6,0.739]
[1757348169048,0.7096,4356.7,4356.6,0.4196]
[1757348169856,0.7096,4356.7,4356.6,0.739]
[1757348170357,0.7096,4356.7,4356.6,0.4196]
[1757348170657,0.7096,4356.7,4356.2,0.3194]
[1757348170851,0.5303,4356.5,4356.4,0.2076]
[1757348171051,0.8259,4356.5,4356.4,0.2076]
[1757348171561,0.8259,4356.5,4355.5,0.357]
[1757348171760,0.2956,4356.4,4355.7,0.54897]
[1757348172156,0.2956,4356.4,4355.8,0.22957]
[1757348172459,0.2956,4356.4,4355.7,0.54897]
[1757348172659,0.2956,4356.4,4355.7,0.3194]
[1757348173057,0.1163,4357.0,4356.3,0.739]
[1757348173262,0.5099,4356.4,4356.3,0.739]
[1757348174155,0.7096,4356.4,4356.3,0.739]
[1757348174762,0.7096,4356.4,4355.9,0.3194]
[1757348175154,0.414,4355.7,4355.1,0.02003]
[1757348175457,0.7096,4355.7,4355.6,0.739]
[1757348175657,0.2143,4355.7,4355.6,0.739]
[1757348175956,0.5166,4355.7,4355.6,0.739]
[1757348176561,0.7193,4355.7,4355.6,0.739]
[1757348176759,0.7193,4355.7,4355.6,0.2076]
[1757348178165,0.1231,4355.5,4355.1,0.02003]
[1757348178357,0.1231,4355.5,4355.1,0.72113]
[1757348178358,0.5052,4355.2,4355.1,0.72113]
[1757348178559,0.7079,4355.2,4355.1,0.43013]
[1757348179265,0.7079,4355.2,4355.1,0.72113]
[1757348179961,0.5052,4355.9,4355.8,0.4101]
[1757348180157,0.5052,4355.9,4355.8,0.7011]
[1757348180357,0.7079,4355.9,4355.3,0.291]
[1757348180759,0.1163,4356.0,4355.1,0.24962]
[1757348180760,0.7079,4355.2,4355.1,0.2001]
[1757348180958,0.7079,4355.2,4354.1,0.291]
[1757348182168,0.93754,4355.2,4354.1,0.291]
[1757348182665,0.7079,4355.2,4355.1,0.2001]
[1757348183166,0.1231,4355.0,4354.1,0.291]
[1757348183366,0.3023,4354.9,4354.1,0.52063]
[1757348183561,0.7079,4354.9,4354.8,0.2001]
[1757348183764,0.7079,4354.9,4354.4,0.291]
[1757348184269,0.4056,4354.9,4354.0,0.122]
[1757348184569,0.7079,4354.8,4354.7,0.2001]
[1757348185068,0.7079,4354.8,4354.0,0.413]
[1757348185268,0.7079,4354.8,4354.0,0.291]
[1757348186473,0.4056,4354.8,4354.0,0.122]
[1757348186672,0.7079,4354.7,4354.6,0.2001]
[1757348186969,0.7079,4354.7,4353.6,0.291]
[1757348187169,0.3023,4354.6,4353.7,0.291]
[1757348187474,0.7079,4354.4,4354.3,0.2001]
[1757348188467,0.7079,4354.4,4353.8,0.291]
[1757348188672,0.1231,4354.5,4353.9,0.2001]
[1757348188673,0.5287,4354.0,4353.9,0.2001]
[1757348188873,0.5287,4354.0,4353.9,0.7011]
[1757348189072,0.831,4354.0,4353.9,0.7011]
[1757348189476,0.831,4354.0,4353.9,0.4101]
[1757348190079,0.7079,4353.4,4352.3,0.291]
[1757348190280,0.7079,4353.4,4353.3,0.22768]
[1757348190487,0.7079,4353.4,4353.3,0.72868]
[1757348190878,0.3023,4353.9,4353.3,0.72868]
[1757348191386,0.5052,4353.9,4353.8,0.7011]
[1757348191579,0.3023,4354.4,4353.8,0.7011]
[1757348191774,0.3023,4354.4,4353.9,0.291]
[1757348192086,0.7079,4354.4,4353.4,0.291]
[1757348193182,0.7079,4354.4,4353.3,0.02758]
[1757348193183,0.7079,4353.4,4353.3,0.02758]
[1757348193387,0.1231,4354.5,4353.8,0.4101]
[1757348193580,0.5052,4353.9,4353.8,0.7011]
[1757348193983,0.3023,4354.4,4353.9,0.291]
[1757348194181,0.3023,4354.4,4353.6,0.291]
[1757348195076,0.3023,4354.4,4353.5,0.122]
[1757348195077,0.5052,4354.4,4354.3,0.7011]
[1757348195277,0.1231,4354.5,4354.3,0.7011]
[1757348195278,0.3023,4354.9,4354.4,0.291]
[1757348195486,0.3023,4354.9,4354.1,0.291]
[1757348195686,0.5052,4354.9,4354.8,0.7011]
[1757348195984,0.7079,4354.9,4354.8,0.2001]
[1757348196386,0.7079,4354.9,4354.8,0.7011]
[1757348196689,0.7079,4354.9,4354.4,0.291]
[1757348197089,0.4056,4354.9,4354.4,0.291]
[1757348197293,0.1231,4355.0,4354.4,0.291]
[1757348197294,0.7079,4354.8,4354.7,0.2001]
[1757348197787,0.5052,4354.8,4354.7,0.7011]
[1757348198296,0.3023,4355.4,4354.8,0.291]
[1757348198495,0.7079,4355.4,4355.3,0.2001]
[1757348198790,0.7079,4355.4,4354.8,0.291]
[1757348200392,0.1231,4355.0,4354.9,0.2001]
[1757348200894,0.5287,4355.0,4354.4,0.291]
[1757348201088,0.3023,4354.7,4354.4,0.93074]
[1757348201400,0.3023,4354.7,4354.6,0.7011]
[1757348201601,0.5052,4354.7,4354.6,0.7011]
[1757348201798,0.7079,4354.7,4354.6,0.4101]
[1757348202498,1.12121,4354.7,4354.6,0.4101]
[1757348203194,1.12121,4354.7,4354.6,0.7011]
[1757348203588,1.12121,4354.7,4354.6,0.4101]
[1757348203996,0.91851,4354.7,4354.6,0.7011]
[1757348204495,1.12121,4354.7,4354.6,0.7011]
[1757348204696,1.12121,4354.7,4354.6,0.4101]
[1757348204997,0.61624,4354.4,4354.3,0.7011]
[1757348205297,0.91854,4354.4,4354.3,0.7011]
[1757348206595,0.61624,4354.4,4354.3,0.7011]
[1757348206787,0.41334,4354.4,4354.3,0.7011]
[1757348207189,0.41333,4354.5,4354.4,0.2963]
[1757348207391,0.41333,4354.5,4354.4,0.7039]
[1757348208095,0.3028,4355.4,4355.1,0.2512]
[1757348208501,0.3028,4355.4,4355.1,0.1916]
[1757348208801,0.1231,4356.0,4355.1,0.1916]
[1757348209202,0.5106,4355.2,4355.1,0.1916]
[1757348210198,0.3028,4355.2,4355.1,0.1916]
[1757348210500,0.3028,4355.4,4355.3,0.2512]
[1757348210798,0.5106,4355.4,4355.3,0.1916]
[1757348212601,0.7224,4355.4,4355.3,0.1916]
[1757348214103,0.7224,4355.4,4355.3,0.0958]
[1757348214407,0.5106,4355.4,4355.3,0.1916]
[1757348214604,0.6273,4355.0,4354.9,0.1916]
[1757348214996,0.8391,4355.0,4354.9,0.0958]
[1757348215199,0.8391,4355.0,4354.7,0.132]
[1757348217006,0.8391,4355.0,4354.2,33.08]
[1757348217007,0.4196,4354.3,4354.2,33.08]
[1757348217304,0.7224,4354.3,4354.2,33.08]
[1757348218709,0.7224,4354.3,4354.0,0.237]
[1757348220708,0.7224,4354.3,4353.2,0.0596]
[1757348220910,0.8391,4353.5,4353.4,0.1916]
[1757348221112,0.6273,4353.5,4353.4,0.4286]
[1757348221310,0.8391,4353.5,4353.4,0.4286]
[1757348221812,0.8391,4353.5,4353.2,0.18431]
[1757348222007,0.8391,4353.5,4353.3,0.237]
[1757348222208,0.8391,4353.5,4353.4,0.0958]
[1757348222713,0.8391,4353.5,4353.4,0.1916]
[1757348223410,0.6273,4353.5,4353.4,0.1916]
[1757348223610,0.4195,4353.5,4353.4,0.1916]
[1757348224110,0.1167,4354.0,4353.4,0.1916]
[1757348224314,0.3028,4353.9,4353.8,0.2512]
[1757348224615,0.7224,4353.9,4353.8,0.0958]
[1757348225115,0.7224,4353.9,4353.8,0.1916]
[1757348225412,0.5106,4353.9,4353.8,0.1916]
[1757348225616,0.3028,4354.4,4354.3,0.2512]
[1757348225811,0.3028,4354.4,4354.3,0.4882]
[1757348226017,0.7224,4354.4,4354.3,0.4286]
[1757348226313,0.7224,4354.4,4354.3,0.3328]
[1757348226506,0.7224,4354.4,4354.3,0.237]
[1757348226707,0.1167,4354.5,4354.4,0.0596]
[1757348226914,0.1167,4354.5,4354.4,0.2512]
[1757348227114,0.3028,4354.7,4354.4,4.2512]
[1757348227409,0.4195,4355.0,4354.9,0.1916]
[1757348227914,0.6273,4355.0,4354.9,0.1916]
[1757348228315,0.8391,4355.0,4354.9,0.1916]
[1757348229712,0.4195,4354.5,4354.4,0.1916]
[1757348229916,0.6273,4354.5,4354.4,0.1916]
[1757348230917,0.4195,4354.5,4354.4,0.1916]
[1757348231210,0.6273,4354.5,4354.4,0.1916]
[1757348231511,0.8391,4354.5,4354.4,0.0958]
[1757348231714,0.5363,4354.5,4353.8,0.4134]
[1757348231915,0.7224,4354.4,4354.3,0.0958]
[1757348234212,0.1167,4354.5,4353.5,0.41343]
[1757348234213,0.8391,4354.0,4353.5,0.41343]
[1757348234406,0.8391,4354.0,4353.4,0.41344]
[1757348234612,0.6273,4353.5,4353.4,0.1916]
[1757348234912,0.6273,4353.5,4353.4,0.84204]
[1757348235520,0.4195,4353.5,4353.4,0.84204]
[1757348235816,0.5263,4353.5,4353.2,2.04223927]
[1757348236115,0.6981,4353.4,4353.3,0.3331]
[1757348236914,0.5251,4353.0,4352.9,0.31774802]
[1757348237113,0.8199,4353.0,4352.9,0.55474802]
[1757348238421,0.8199,4353.0,4352.9,0.31774802]
[1757348238721,0.8199,4353.0,4352.9,0.55474802]
[1757348239421,0.8199,4353.0,4352.9,1.06433802]
[1757348239623,0.2948,4353.0,4352.9,1.12443802]
[1757348240221,0.4166,4353.0,4352.9,1.12443802]
[1757348240529,0.8199,4353.0,4352.9,0.65084802]
[1757348240821,0.8199,4353.0,4352.9,0.27128]
[1757348243316,4.8199,4353.0,4352.8,0.17459825]
[1757348243631,0.6981,4351.8,4351.7,1.01283929]
[1757348243817,0.6981,4351.8,4351.7,1.24983929]
[1757348244120,0.4963,4351.8,4351.7,1.51883929]
[1757348244422,0.6981,4351.8,4351.7,0.63554929]
[1757348245018,0.6981,4351.8,4351.7,0.83624929]
[1757348246818,0.6981,4351.8,4351.7,1.10524929]
[1757348247316,0.6981,4351.8,4351.7,0.42314929]
[1757348247522,0.6981,4351.8,4351.7,0.83524929]
[1757348247823,0.6981,4351.8,4351.7,0.63454929]
[1757348249724,0.4963,4351.8,4351.7,1.10424929]
[1757348249924,0.2948,4351.8,4351.7,1.10424929]
[1757348250126,0.1218,4353.0,4352.3,1.12044]
[1757348250317,1.11162,4352.6,4352.5,0.7069]
[1757348250512,0.41356,4352.2,4352.0,0.1205]
[1757348250724,0.4033,4351.8,4351.7,1.30763929]
[1757348251022,0.4033,4351.8,4351.7,1.13004929]
[1757348251023,0.6981,4351.8,4351.7,1.13004929]
[1757348251418,0.6981,4351.8,4351.7,0.42314929]
[1757348251718,0.6981,4351.2,4351.1,33.083]
[1757348251924,0.6981,4351.2,4351.1,33.32]
[1757348253324,1.03398,4351.9,4351.1,33.32]
[1757348253325,0.70843,4351.4,4351.3,0.2948]
[1757348253619,0.4963,4351.4,4351.3,0.7069]
[1757348253815,0.41356,4352.2,4351.9,0.7069]
[1757348254020,0.41351,4352.7,4352.4,0.41353]
[1757348254217,0.61501,4352.7,4352.6,0.7069]
[1757348254515,1.11161,4352.7,4352.6,0.7069]
[1757348254715,1.11161,4352.7,4352.6,0.2114]
[1757348254919,0.6981,4352.6,4352.5,0.237]
[1757348255124,0.41351,4352.7,4352.5,1.35742]
[1757348255326,0.41351,4352.7,4352.6,0.7069]
[1757348256424,0.2948,4353.0,4352.7,0.2948]
[1757348256633,0.4963,4353.0,4352.9,0.5062]
[1757348257023,0.6981,4353.0,4352.9,0.5062]
[1757348257322,0.2948,4352.9,4352.6,0.2948]
[1757348257523,0.4963,4352.7,4352.6,0.5062]
[1757348258031,0.6981,4352.7,4352.6,0.5062]
[1757348258422,0.6981,4352.7,4352.5,0.237]
[1757348259031,0.2948,4352.6,4352.5,0.237]
[1757348259232,0.6981,4352.6,4352.5,0.237]
[1757348259524,0.6981,4352.6,4352.5,0.4484]
[1757348260931,0.4166,4353.0,4352.5,1.0644]
[1757348261232,0.2948,4353.4,4352.8,0.7069]
[1757348261731,0.2015,4352.9,4352.8,0.7069]
[1757348261928,0.2948,4352.8,4352.5,0.237]
[1757348262128,0.6981,4352.6,4352.5,0.4484]
[1757348262320,0.6981,4352.6,4352.5,0.6491]
[1757348262526,1.11161,4352.6,4352.5,0.9439]
[1757348262727,1.11161,4352.6,4352.5,0.6491]
[1757348262931,1.11161,4352.6,4352.5,0.9439]
[1757348263531,0.41351,4352.6,4352.5,0.9439]
[1757348263737,0.61496,4353.2,4353.1,0.7069]
[1757348263930,0.90976,4353.2,4353.1,0.7069]
[1757348264132,1.11156,4353.2,4353.1,0.7069]
[1757348264639,0.2015,4352.8,4352.7,1.12041]
[1757348264932,0.615,4352.8,4352.7,1.12041]
[1757348265538,0.2015,4352.8,4352.7,1.12041]
[1757348265731,2.06684,4354.2,4352.7,1.12041]
[1757348265732,0.41337,4354.1,4353.8,0.7386]
[1757348266031,0.41332,4354.7,4354.3,0.315]
[1757348266231,0.41332,4354.7,4354.6,0.7386]
[1757348266232,0.7141,4354.7,4354.6,0.7386]
[1757348266429,0.7141,4354.7,4354.6,0.9426]
[1757348266825,0.1979,4354.7,4354.6,0.9426]
[1757348267029,0.314,4355.6,4354.8,0.7283]
[1757348267237,0.41331,4354.8,4354.7,0.315]
[1757348267438,0.41331,4354.8,4354.6,0.204]
[1757348267639,0.314,4354.7,4354.6,0.204]
[1757348268127,0.41331,4354.8,4354.7,0.315]
[1757348268329,0.41331,4354.8,4354.6,0.204]
[1757348268330,0.314,4354.7,4354.6,0.204]
[1757348268541,0.314,4354.7,4354.6,0.519]
[1757348268928,1.15582,4355.5,4354.6,0.93232]
[1757348268929,0.41329,4355.0,4354.6,0.93232]
[1757348269230,0.72727,4355.2,4354.6,0.519]
[1757348269430,0.314,4355.4,4354.7,0.315]
[1757348269633,0.41324,4355.6,4355.2,0.41326]
[1757348269831,0.41324,4355.5,4355.0,0.53628]
[1757348270028,0.41323,4355.7,4355.2,0.41326]
[1757348270342,0.41324,4355.6,4355.2,0.41326]
[1757348270541,0.41322,4355.7,4355.1,0.315]
[1757348270745,0.314,4356.4,4355.6,0.41323]
[1757348271039,0.41319,4356.1,4355.7,0.236]
[1757348271236,0.314,4356.4,4355.8,0.315]
[1757348271636,0.314,4356.4,4355.7,0.551]
[1757348272341,0.41319,4356.1,4355.7,0.236]
[1757348272546,0.41319,4356.1,4356.0,0.438]
[1757348272742,0.41317,4356.3,4356.0,0.438]
[1757348273041,0.41318,4356.2,4356.1,0.315]
[1757348273439,0.314,4356.6,4356.2,0.315]
[1757348273639,0.41318,4356.2,4356.0,0.123]
[1757348273942,0.41318,4356.2,4356.1,0.315]
[1757348274143,0.72718,4356.2,4356.1,0.315]
[1757348274344,0.314,4356.4,4355.8,0.315]
[1757348274647,0.314,4356.3,4355.6,0.315]
[1757348274947,0.72719,4356.0,4355.9,0.236]
[1757348275146,0.314,4355.7,4355.6,0.315]
[1757348275342,0.5119,4355.7,4355.6,0.7656]
[1757348275646,0.5119,4355.7,4355.6,0.7386]
[1757348275847,0.7141,4355.7,4355.6,0.9746]
[1757348277349,0.7141,4355.7,4355.6,0.4506]
[1757348277649,0.7141,4355.7,4354.6,0.7386]
[1757348277650,0.5119,4354.7,4354.6,0.7386]
[1757348277841,0.5119,4354.7,4354.6,0.9746]
[1757348278041,0.5119,4354.7,4354.3,33.076]
[1757348278042,0.314,4354.6,4354.3,33.076]
[1757348278251,0.314,4354.4,4354.3,33.076]
[1757348278545,0.314,4354.4,4354.3,33.312]
[1757348281042,0.1979,4355.0,4354.9,0.7386]
[1757348281247,0.314,4355.9,4355.1,0.315]
[1757348281637,0.314,4355.9,4355.1,0.236]
[1757348281836,0.314,4355.4,4355.1,0.236]
[1757348282037,0.314,4356.1,4355.5,0.123]
[1757348282239,0.314,4356.4,4355.5,0.438]
[1757348282448,0.41323,4355.7,4355.5,0.315]
[1757348282648,0.41323,4355.6,4355.4,0.315]
[1757348282848,1.03289,4356.4,4355.6,0.315]
[1757348283039,0.41321,4355.8,4355.7,0.552]
[1757348283243,0.314,4356.4,4355.8,0.315]
[1757348283649,0.314,4356.9,4356.3,0.41316]
[1757348283842,0.314,4357.3,4356.6,0.315]
[1757348284048,1.15535,4357.5,4356.6,0.315]
[1757348284049,0.41312,4356.8,4356.6,0.315]
[1757348284246,0.314,4356.7,4356.6,0.315]
[1757348284949,0.314,4358.0,4356.8,0.315]
[1757348285140,0.314,4358.4,4358.0,0.413]
[1757348285452,0.41294,4358.7,4358.1,0.238]
[1757348285651,0.314,4358.5,4358.2,0.315]
[1757348285849,0.314,4358.8,4358.2,0.315]
[1757348286053,0.314,4358.4,4358.2,0.315]
[1757348286251,0.314,4358.3,4358.2,0.315]
[1757348287449,0.41297,4358.4,4358.1,0.238]
[1757348287753,0.17,4358.9,4357.5,0.31078087]
[1757348287754,0.727,4358.1,4357.5,1.03882087]
[1757348288050,0.72701,4358.0,4357.6,0.65104]
[1757348288249,0.72704,4357.6,4357.1,0.315]
[1757348288445,0.314,4357.8,4356.9,0.315]
[1757348288649,0.41309,4357.1,4357.0,0.238]
[1757348288850,0.314,4357.1,4357.0,0.553]
[1757348289049,0.41308,4357.2,4357.0,0.238]
[1757348289345,0.41306,4357.4,4357.0,0.238]
[1757348289545,0.41307,4357.3,4357.0,0.238]
[1757348289751,0.1227,4358.0,4357.1,0.238]
[1757348289950,0.314,4357.9,4357.2,0.315]
[1757348290145,0.314,4357.9,4356.7,0.22949999]
[1757348290146,0.314,4357.9,4356.7,3.33360708]
[1757348290348,0.1227,4357.5,4357.3,0.238]
[1757348290546,0.314,4357.4,4357.3,0.238]
[1757348292447,0.1227,4357.5,4356.4,0.315]
[1757348292648,0.314,4357.4,4356.6,0.65113]
[1757348292848,0.314,4357.4,4356.7,0.72812]
[1757348293053,0.314,4357.4,4356.7,0.315]
[1757348293350,0.314,4357.4,4356.7,0.72812]
[1757348293557,0.314,4357.4,4356.7,0.315]
[1757348293753,0.314,4357.5,4357.1,0.315]
[1757348293959,0.314,4357.9,4357.5,0.123]
[1757348294256,0.314,4358.4,4357.6,0.238]
[1757348294452,0.314,4357.9,4357.7,0.238]
[1757348295255,0.314,4357.9,4356.9,0.315]
[1757348295453,0.314,4357.9,4357.0,0.238]
[1757348296252,0.314,4357.9,4357.0,0.65109]
[1757348296452,0.53389001,4357.9,4356.7,0.41312]
[1757348296758,0.3044,4357.4,4356.8,0.237]
[1757348297257,0.3044,4357.4,4356.8,0.65011]
[1757348297658,0.3044,4357.4,4356.9,0.4131]
[1757348298065,0.1947,4357.0,4356.9,1.1184]
[1757348298367,0.3044,4357.2,4357.0,0.41309]
[1757348298660,0.4991,4357.2,4357.1,0.5089]
[1757348298854,0.4991,4357.2,4357.1,0.7053]
[1757348299455,0.7039,4357.2,4357.1,0.7053]
[1757348299762,0.7039,4357.2,4357.1,0.2134]
[1757348299963,0.7039,4357.2,4357.1,0.5089]
[1757348300556,0.7039,4357.2,4356.5,33.197]
[1757348300557,0.3995,4356.6,4356.5,33.074]
[1757348300760,0.7039,4356.6,4356.5,33.311]
[1757348301354,0.7039,4356.6,4356.5,0.237]
[1757348302559,4.7039,4356.6,4356.5,0.237]
[1757348302756,4.7039,4356.6,4355.2,0.2955]
[1757348302757,0.1201,4356.5,4355.2,0.2955]
[1757348302959,0.3044,4356.4,4355.4,0.41325]
[1757348303156,0.3044,4356.4,4355.6,0.2955]
[1757348303558,0.1947,4355.7,4355.6,0.5089]
[1757348303762,0.3044,4356.4,4355.6,0.7053]
[1757348304563,0.1201,4356.5,4355.6,0.7053]
[1757348304758,0.3044,4356.4,4355.6,0.7053]
[1757348305554,0.3044,4356.4,4355.7,0.2955]
[1757348305759,0.3044,4356.4,4355.8,0.237]
[1757348306962,0.7039,4355.9,4355.8,0.4504]
[1757348307170,0.7039,4355.9,4355.8,0.9423]
[1757348307364,0.1947,4356.4,4356.3,0.4098]
[1757348307664,0.3044,4356.9,4356.1,0.2955]
[1757348307865,0.1947,4355.7,4355.6,0.7053]
[1757348308071,0.4991,4355.7,4355.6,0.9423]
[1757348308268,0.1947,4355.7,4355.6,0.9423]
[1757348308566,0.7039,4355.7,4355.6,0.9423]
[1757348309273,0.7039,4355.7,4355.6,0.7053]
[1757348309473,0.7039,4355.7,4355.6,0.9423]
[1757348309864,0.1947,4355.7,4355.6,0.9423]
[1757348310468,0.3044,4356.4,4355.7,0.70871]
[1757348310773,0.1947,4356.4,4356.3,0.7053]
[1757348310968,0.4991,4356.4,4356.3,0.9423]
[1757348311171,0.7039,4356.4,4356.3,0.9423]